fUSD/lending_fUSD_20240503
["ID","MTS","AMOUNT","RATE_DAILY","PERIOD"]
[325334033,1714740646187,-300.0,0.00042466,2]
[325334034,1714740646203,-350.82,0.00042466,2]
[325334035,1714740646212,-350.82,0.00042466,2]
[325334036,1714740646222,-350.82,0.00042466,2]
[325334037,1714740646231,-350.82,0.00042466,2]
[325334038,1714740646240,-350.82,0.00042466,2]
[325334039,1714740646250,-150.0,0.00042468,2]
[325334040,1714740646259,-150.0,0.0004247,2]
[325334041,1714740646268,-150.0,0.00042471,2]
[325334042,1714740646278,-150.0,0.0004248,2]
[325334043,1714740646287,-300.0,0.00042481,2]
[325334044,1714740646297,-150.0,0.00042495,2]
[325334045,1714740646306,-150.0,0.00042502,2]
[325334046,1714740646315,-150.0,0.00042508,2]
[325334047,1714740646325,-150.0,0.0004251,2]
[325334048,1714740646334,-1000.0,0.0004252,21]
[325334049,1714740646344,-300.0,0.00042524,120]
[325334050,1714740646354,-150.0,0.00042529,2]
[325334051,1714740646364,-150.0,0.00042532,2]
[325334052,1714740646373,-150.0,0.00042534,2]
[325334053,1714740646383,-150.0,0.00042543,2]
[325334054,1714740646392,-150.0,0.00042544,2]
[325334055,1714740646402,-291.02007085,0.00042551,2]
[325334056,1714740646411,-152.13,0.0004256,10]
[325334057,1714740646420,-150.0,0.00042568,2]
[325334059,1714740646433,-2985.484,0.0004257,4]
[325334060,1714740646445,-2985.485,0.0004257,4]
[325334061,1714740646455,-2985.485,0.0004257,4]
[325334062,1714740646464,-2985.485,0.0004257,4]
[325334063,1714740646473,-2985.485,0.0004257,4]
[325334064,1714740646483,-150.0,0.00042573,2]
[325334065,1714740646492,-150.0,0.00042581,2]
[325334066,1714740646502,-150.0,0.0004259,2]
[325334067,1714740646511,-300.0,0.00042591,2]
[325334068,1714740646522,-10000.0,0.000426,12]
[325334069,1714740646531,-272.87,0.000426,7]
[325334070,1714740646541,-150.0,0.00042602,2]
[325334071,1714740646551,-150.0,0.00042606,2]
[325334072,1714740646565,-150.0,0.00042614,2]
[325334073,1714740646575,-500.0,0.00042616,30]
[325334074,1714740646584,-500.0,0.00042616,30]
[325334075,1714740646595,-150.0,0.00042621,2]
[325334076,1714740646604,-300.0,0.00042631,2]
[325334077,1714740646614,-150.0,0.00042635,2]
[325334078,1714740646623,-150.0,0.00042636,2]
[325334079,1714740646633,-151.78,0.00042638,10]
[325334080,1714740646643,-150.0,0.00042639,2]
[325334081,1714740646652,-150.0,0.00042648,2]
[325334082,1714740646663,-150.0,0.00042651,2]
[325334083,1714740646674,-150.0,0.00042656,2]
[325334084,1714740646683,-1000.0,0.00042657,22]
[325334085,1714740646695,-150.0,0.00042668,2]
[325334086,1714740646705,-568.94655023,0.0004267,30]
[325334087,1714740646714,-150.0,0.0004267,2]
[325334088,1714740646723,-164.06,0.00042673,120]
[325334089,1714740646733,-150.0,0.00042675,2]
[325334090,1714740646742,-300.0,0.00042694,2]
[325334091,1714740646752,-300.0,0.00042695,2]
[325334092,1714740646763,-150.0,0.00042698,2]
[325334093,1714740646773,-150.0,0.0004271,2]
[325334094,1714740646783,-150.0,0.0004271,2]
[325334095,1714740646794,-2379.33,0.00042712,77]
[325334096,1714740646804,-2233.72,0.00042712,77]
[325334097,1714740646814,-150.0,0.00042713,2]
[325334098,1714740646823,-150.0,0.00042723,2]
[325334099,1714740646833,-500.0,0.00042733,2]
[325334100,1714740646842,-150.0,0.00042736,2]
[325334101,1714740646851,-150.0,0.00042741,2]
[325334102,1714740646861,-150.0,0.00042745,2]
[325334103,1714740646870,-150.0,0.00042748,2]
[325334104,1714740646880,-150.0,0.00042756,2]
[325334105,1714740646890,-150.0,0.00042758,2]
[325334106,1714740646900,-150.0,0.00042767,2]
[325334107,1714740646910,-150.0,0.00042768,2]
[325334108,1714740646920,-150.0,0.00042783,2]
[325334109,1714740646930,-1000.0,0.00042794,23]
[325334110,1714740646939,-150.0,0.000428,2]
[325334111,1714740646952,-150.0,0.000428,2]
[325334112,1714740646962,-300.0,0.000428,15]
[325334113,1714740646971,-150.0,0.00042802,2]
[325334114,1714740646981,-300.0,0.00042812,2]
[325334115,1714740646991,-302.7,0.00042821,10]
[325334116,1714740647000,-150.0,0.00042822,2]
[325334117,1714740647009,-150.0,0.00042823,2]
[325334118,1714740647021,-150.0,0.00042828,2]
[325334119,1714740647031,-150.0,0.00042829,2]
[325334120,1714740647040,-150.0,0.0004284,2]
[325334121,1714740647049,-150.0,0.00042866,2]
[325334122,1714740647058,-150.0,0.00042872,2]
[325334123,1714740647068,-150.0,0.00042874,2]
[325334124,1714740647078,-885.0,0.00042885,30]
[325334125,1714740647087,-750.0,0.00042885,30]
[325334126,1714740647097,-150.0,0.00042893,2]
[325334127,1714740647106,-150.0,0.00042893,2]
[325334128,1714740647116,-300.0,0.000429,15]
[325334129,1714740647125,-352.43262006,0.000429,2]
[325334130,1714740647134,-150.0,0.00042903,2]
[325334131,1714740647143,-300.0,0.00042913,2]
[325334132,1714740647153,-150.0,0.0004292,2]
[325334133,1714740647162,-150.0,0.00042922,2]
[325334134,1714740647171,-150.0,0.00042924,2]
[325334135,1714740647181,-150.0,0.00042926,2]
[325334136,1714740647189,-1000.0,0.00042931,24]
[325334137,1714740647204,-266.09022731,0.00042931,2]
[325334138,1714740647213,-300.0,0.00042932,2]
[325334139,1714740647222,-150.0,0.00042936,2]
[325334140,1714740647231,-150.0,0.00042939,2]
[325334141,1714740647240,-150.0,0.00042948,2]
[325334142,1714740647249,-150.0,0.00042954,2]
[325334143,1714740647258,-150.0,0.00042962,2]
[325334144,1714740647267,-2379.33,0.00042986,79]
[325334145,1714740647276,-2233.72,0.00042986,79]
[325334146,1714740647286,-50000.0,0.00043,23]
[325334147,1714740647295,-500.0,0.00043,20]
[325334148,1714740647305,-291510.74184328,0.00043,60]
[325334149,1714740647315,-1000000.0,0.00043,60]
[325334150,1714740647324,-1000000.0,0.00043,60]
[325334151,1714740647334,-1000000.0,0.00043,60]
[325334152,1714740647343,-900.0,0.00043,120]
[325334153,1714740647353,-260.0,0.00043,30]
[325334154,1714740647362,-1000000.0,0.00043,60]
[325334155,1714740647372,-88207.02740389,0.00043,60]
[325334156,1714740647390,-911792.97259611,0.00043,60]
[325334157,1714740647399,-1000000.0,0.00043,60]
[325334158,1714740647409,-943.28775153,0.00043,30]
[325334159,1714740647418,-450.40781003,0.00043,120]
[325334160,1714740647428,-3000.0,0.00043,18]
[325334161,1714740647437,-218.68035917,0.00043,120]
[325334162,1714740647449,-644340.2052723,0.00043,60]
[325334163,1714740647461,-355659.7947277,0.00043,60]
[325334164,1714740647471,-869300.89346704,0.00043,60]
[325334165,1714740647483,-7927.61072196,0.00043,60]
[325334166,1714740647495,-18260.88010382,0.00043,60]
[325334167,1714740649395,-1308.10749369,0.000179,2]
[325334168,1714740649405,-1211.81420206,0.00027976,2]
[325334169,1714740649415,-2740.37028818,0.00033479,2]
[325334170,1714740649426,-889.14929002,0.00033479,2]
[325334171,1714740649439,-756.16141955,0.00033479,2]
[325334172,1714740649478,-1020.75444223,0.00033479,2]
[325334173,1714740649488,-150.0,0.00042771,2]
[325334174,1714740649497,-150.0,0.00042796,2]
[325334175,1714740649507,-264.25714789,0.0004282,2]
[325334176,1714740649516,-150.0,0.00042843,2]
[325334177,1714740649525,-150.0,0.00042853,2]
[325334178,1714740649534,-150.0,0.0004287,2]
[325334179,1714740649543,-150.0,0.00042881,2]
[325334180,1714740649552,-3915.44885845,0.00043,60]
[325334181,1714740649570,-29889.50738249,0.00043,60]
[325334182,1714740649582,-70705.65946624,0.00043,60]
[325334183,1714740649591,-65999.45877016,0.00043,60]
[325334184,1714740649603,-2719.8,0.00043,60]
[325334185,1714740649617,-2405.68,0.00043,60]
[325334186,1714740649629,-13618.17632126,0.00043,60]
[325334187,1714740649711,-9088.02580042,0.00043,60]
[325334188,1714740649723,-1006.89059751,0.00043,60]
[325334189,1714740649734,-5823.7,0.00043,60]
[325334190,1714740649745,-3136.85994,0.00043,60]
[325334191,1714740649756,-776.606215,0.00043,60]
[325334195,1714740856129,400.0,0.00024763,120]
[325334207,1714741055598,-1785.98076718,0.00010798,2]
[325334208,1714741055625,-364.13980716,0.00010798,2]
[325334209,1714741055651,-622.20002294,0.00010798,2]
[325334210,1714741055678,-155.0,0.00010798,2]
[325334211,1714741055705,-445.24209166,0.00010798,2]
[325334212,1714741068403,-1000.0,0.000122,4]
[325334213,1714741068426,-1300.0,0.000122,4]
[325334214,1714741076107,5500.0,0.000123,2]
[325334215,1714741076131,4800.0,0.000123,2]
[325334216,1714741076536,2300.0,0.000121,2]
[325334219,1714741181335,-155.0,0.00010798,2]
[325334220,1714741181359,-28033.68753588,0.000123,2]
[325334221,1714741246271,300.0,0.00012,2]
[325334222,1714741246294,300.0,0.00012,2]
[325334223,1714741246317,117.28936505,0.00012,2]
[325334225,1714741355258,182.71063495,0.00010798,2]
[325334226,1714741355283,3000.0,0.00010798,2]
[325334227,1714741403018,150.0,8.099e-05,2]
[325334228,1714741403039,150.0,8.099e-05,2]
[325334229,1714741403064,150.0,8.099e-05,2]
[325334230,1714741403085,150.0,8.099e-05,2]
[325334231,1714741403104,150.0,8.099e-05,2]
[325334232,1714741403125,150.0,8.099e-05,2]
[325334233,1714741403145,150.0,8.099e-05,2]
[325334234,1714741403166,150.0,8.099e-05,2]
[325334235,1714741403186,150.0,8.099e-05,2]
[325334236,1714741403206,150.0,8.099e-05,2]
[325334237,1714741403227,150.0,8.099e-05,2]
[325334238,1714741403248,68.8409987,8.099e-05,2]
[325334240,1714741455374,150.0,8.099e-05,2]
[325334241,1714741455397,150.0,8.099e-05,2]
[325334242,1714741455419,150.0,8.099e-05,2]
[325334243,1714741455440,150.0,8.099e-05,2]
[325334244,1714741455462,150.0,8.099e-05,2]
[325334245,1714741455484,284.38773604,8.099e-05,2]
[325334246,1714741455511,99479.08258297,8.099e-05,2]
[325334248,1714741581492,150.0,9.99e-05,2]
[325334249,1714741581513,27.77,9.99e-05,2]
[325334250,1714741634909,122.23,9.99e-05,2]
[325334251,1714741634934,249.18539804,9.99e-05,2]
[325334252,1714741634960,495.54705069,9.99e-05,2]
[325334253,1714741650887,557.05926328,9.99e-05,2]
[325334254,1714741656328,422.8208092,8.991e-05,2]
[325334263,1714741802870,150.0,8.991e-05,2]
[325334264,1714741802984,150.0,8.991e-05,2]
[325334265,1714741803175,150.0,8.991e-05,2]
[325334266,1714741803355,150.0,8.991e-05,2]
[325334267,1714741803506,150.0,8.991e-05,2]
[325334268,1714741803794,150.0,8.991e-05,2]
[325334269,1714741803883,300.0,8.991e-05,2]
[325334270,1714741813170,166.41,9.317e-05,2]
[325334291,1714741832590,-178.08103227,0.00010697,2]
[325334292,1714741832600,-150.0,0.00010797,2]
[325334293,1714741832610,-4587.97821425,0.00010798,2]
[325334294,1714741832622,-155.44721549,0.00010798,2]
[325334295,1714741832633,-333.06889411,0.00010798,2]
[325334296,1714741832643,-298.96206293,0.00010798,2]
[325334297,1714741832653,-1198.0,0.00011,2]
[325334298,1714741832662,-920.0,0.00011742,2]
[325334299,1714741832672,-178.08103226,0.00011799,2]
[325334300,1714741832682,-1151.17,0.00012042,4]
[325334301,1714741832691,-2762.26,0.00012121,2]
[325334302,1714741832700,-1699.05,0.00012121,2]
[325334303,1714741832710,-2600.0,0.000122,4]
[325334304,1714741832720,-5300.0,0.000123,4]
[325334305,1714741832729,-499.99,0.000123,2]
[325334306,1714741832739,-558.14,0.00012351,2]
[325334307,1714741832748,-8000.0,0.000124,4]
[325334308,1714741832758,-1852.42,0.00012413,2]
[325334309,1714741832767,-4356.95372247,0.00012434,2]
[325334310,1714741832779,-7101.87627753,0.00012434,2]
[325334311,1714741832788,-200.0,0.00012489,2]
[325334312,1714741832798,-1984.1,0.00012492,2]
[325334313,1714741832807,-9653.40675486,0.000125,4]
[325334314,1714741832818,-1046.59324514,0.000125,4]
[325334315,1714741832827,-8026.75675485,0.000126,4]
[325334316,1714741832866,-333.00794755,0.000126,4]
[325334317,1714741832882,-279.69657276,0.000126,4]
[325334318,1714741832894,-1098.8377003,0.000126,4]
[325334319,1714741832909,-3661.70102454,0.000126,4]
[325334320,1714741832919,-250.0,0.00012656,2]
[325334321,1714741832928,-10000.0,0.00012671,2]
[325334322,1714741832938,-2600.0,0.000127,4]
[325334323,1714741832948,-2600.0,0.000128,4]
[325334324,1714741832958,-153.64,0.00012828,2]
[325334325,1714741832968,-353.50731059,0.000129,2]
[325334326,1714741832977,-151.39999167,0.000129,2]
[325334327,1714741832988,-707.88596651,0.000129,2]
[325334328,1714741832998,-2819.94746597,0.000129,2]
[325334329,1714741833007,-2584.52024124,0.000129,2]
[325334330,1714741833016,-2600.0,0.000129,4]
[325334331,1714741833026,-178.08103226,0.000129,2]
[325334332,1714741833036,-754.0938,0.000129,2]
[325334333,1714741833046,-326.75180842,0.000129,2]
[325334334,1714741833054,-181.86784178,0.000129,2]
[325334335,1714741833064,-702.62338552,0.000129,2]
[325334336,1714741833073,-7946.19324778,0.0001298,2]
[325334337,1714741833083,-247.85241209,0.0001299,2]
[325334338,1714741833093,-247.85241209,0.0001299,2]
[325334339,1714741833102,-247.85241209,0.0001299,2]
[325334340,1714741833112,-308.85,0.0001299,2]
[325334341,1714741833123,-308.85,0.0001299,2]
[325334342,1714741833132,-308.85,0.0001299,2]
[325334343,1714741833141,-308.85,0.0001299,2]
[325334344,1714741833150,-308.85,0.0001299,2]
[325334345,1714741833158,-308.85,0.0001299,2]
[325334346,1714741833168,-308.85,0.0001299,2]
[325334347,1714741833177,-308.85,0.0001299,2]
[325334348,1714741833187,-200.0,0.00012995,2]
[325334349,1714741833196,-194.72107831,0.00012999,3]
[325334350,1714741833205,-134713.69648478,0.00013,2]
[325334351,1714741833225,-913.20913556,0.00013,2]
[325334352,1714741833365,-5536.27218384,0.00013,2]
[325334353,1714741833380,-700.0,0.00013,2]
[325334354,1714741833392,-2450.0,0.00013,2]
[325334355,1714741833402,-3571.84322377,0.00013,2]
[325334356,1714741833484,-308.85,0.0001299,2]
[325334357,1714741833494,-139.89875887,0.00013,2]
[325334358,1714741833506,-255.97559429,0.00013,2]
[325334697,1714741838325,-308.85,0.0001299,2]
[325334698,1714741838335,-209.43182338,0.00013,2]
[325334699,1714741838346,-149395.65794388,0.00013,2]
[325334700,1714741838357,-6550.48008,0.00013,2]
[325334701,1714741838370,-11083296.94412469,0.00013,2]
[325334702,1714741838384,-1749.0834379,0.00013,2]
[325334703,1714741838393,-3367581.99259181,0.00013,2]
[325334705,1714741838404,-2915440.23024406,0.00013,2]
[325334706,1714741838416,-423396.89926276,0.00013,2]
[325334707,1714741838427,-2427.41108571,0.00013,2]
[325334734,1714741840757,-884.29427894,0.00013,2]
[325334735,1714741840769,-345.1849985,0.00013,2]
[325334736,1714741840782,-975.9897,0.00013,2]
[325334737,1714741840865,-3747.6,0.00013,2]
[325334738,1714741841353,-36640.4495684,0.00013,2]
[325334739,1714741841366,-61371.31000001,0.00013,2]
[325334740,1714741841379,-246102.41362062,0.00013,2]
[325334741,1714741841389,-1500.0,0.00013086,2]
[325334742,1714741841399,-23900.0,0.0001318,2]
[325334743,1714741841410,-920.0,0.0001321,2]
[325334744,1714741841420,-390.34600866,0.00014,2]
[325334745,1714741841430,-154.27,0.00014003,2]
[325334746,1714741841439,-154.27,0.00014076,2]
[325334747,1714741841449,-154.27,0.00014149,2]
[325334748,1714741841458,-154.27,0.00014222,2]
[325334749,1714741841467,-164.96,0.00014259,2]
[325334750,1714741841477,-154.27,0.00014295,2]
[325334751,1714741841486,-154.27,0.00014368,2]
[325334752,1714741841496,-2819.94746589,0.00014436,2]
[325334753,1714741841508,-154.27,0.00014441,2]
[325334754,1714741841522,-154.27,0.00014514,2]
[325334755,1714741841532,-154.27,0.00014587,2]
[325334756,1714741841541,-180.46,0.00014645,2]
[325334757,1714741841550,-154.27,0.0001466,2]
[325334758,1714741841560,-920.0,0.00014678,2]
[325334759,1714741841570,-180.46,0.00014719,2]
[325334760,1714741841579,-154.27,0.00014733,2]
[325334761,1714741841589,-197.13,0.00015164,2]
[325334762,1714741841598,-2819.94746589,0.00015972,2]
[325334763,1714741841608,-153.64,0.00016035,2]
[325334764,1714741841618,-151.39999165,0.00016068,2]
[325334765,1714741841629,-920.0,0.00016146,2]
[325334766,1714741841638,-7485.0,0.00016168,2]
[325334767,1714741841647,-200.0,0.00016438,2]
[325334768,1714741841658,-164.96,0.00016636,2]
[325334769,1714741841668,-155.0,0.00016997,2]
[325334770,1714741841678,-311.39599109,0.00016997,2]
[325334771,1714741841687,-168.5402642,0.00016997,2]
[325334772,1714741841697,-22788.98881143,0.00016999,2]
[325334773,1714741841706,-2819.94746589,0.00017509,2]
[325334774,1714741841716,-920.0,0.00017614,2]
[325334775,1714741841725,-2080.64328198,0.0001788,2]
[325334776,1714741841735,-2080.64328195,0.0001788,2]
[325334777,1714741841744,-2080.64328195,0.0001788,2]
[325334778,1714741841754,-2080.64328195,0.0001788,2]
[325334779,1714741841764,-2080.64328195,0.0001788,2]
[325334780,1714741841774,-2080.64328195,0.0001788,2]
[325334781,1714741841783,-2080.64328195,0.0001788,2]
[325334782,1714741841794,-2080.64328195,0.0001788,2]
[325334783,1714741841804,-2080.64328195,0.0001788,2]
[325334784,1714741841814,-2080.64328195,0.0001788,2]
[325334785,1714741841824,-450.0,0.00018,3]
[325334786,1714741841834,-400.0,0.0001801,2]
[325334787,1714741841844,-23374.48506047,0.00019,5]
[325334788,1714741841855,-164.96,0.00019013,2]
[325334789,1714741841865,-2819.94746589,0.00019045,2]
[325334790,1714741841875,-153.64,0.00019242,2]
[325334791,1714741841888,-166.28,0.000193,2]
[325334792,1714741841901,-563.74,0.000193,2]
[325334793,1714741841910,-555.58,0.000193,2]
[325334794,1714741841922,-200.0,0.00019492,2]
[325334795,1714741841932,-10007.89605839,0.000199,2]
[325334796,1714741841943,-151.87422436,0.000199,2]
[325334797,1714741841953,-151.87422436,0.000199,2]
[325334798,1714741841962,-1000.0,0.0002,2]
[325334799,1714741841972,-500.0,0.0002,3]
[325334800,1714741841982,-186.27091655,0.00020026,30]
[325334801,1714741841994,-400.0,0.00020261,2]
[325334802,1714741842004,-2819.94746589,0.00020581,2]
[325334803,1714741842014,-151.87422436,0.00020614,2]
[325334804,1714741842024,-155.0,0.000209,2]
[325334805,1714741842034,-1155.14723567,0.00021,2]
[325334806,1714741842044,-164.96,0.00021389,2]
[325334807,1714741842053,-170.99,0.00021644,2]
[325334808,1714741842063,-2000.0,0.00021918,2]
[325334809,1714741842072,-250.0,0.00021918,2]
[325334810,1714741842082,-13677.66,0.00021918,2]
[325334811,1714741842092,-2000.0,0.00021918,3]
[325334812,1714741842102,-150.0,0.00021918,2]
[325334813,1714741842112,-550.0,0.00022,3]
[325334814,1714741842122,-2819.94746589,0.00022117,2]
[325334815,1714741842134,-155.15237881,0.00022381,2]
[325334816,1714741842143,-400.0,0.00022512,2]
[325334817,1714741842155,-555.58,0.000226,2]
[325334818,1714741842164,-563.74,0.000233,2]
[325334819,1714741842176,-7726.23,0.00023368,2]
[325334820,1714741842185,-2819.94746589,0.00023653,2]
[325334821,1714741842196,-155.78417517,0.00024,2]
[325334822,1714741842206,-600.0,0.00024,3]
[325334823,1714741842216,-166.28,0.00024,2]
[325334824,1714741842226,-180.24,0.00024329,15]
[325334825,1714741842235,-151.87422436,0.00024471,2]
[325334826,1714741842245,-22418.11,0.00024658,2]
[325334827,1714741842255,-5000.0,0.00025,2]
[325334828,1714741842264,-2433.0,0.00025,2]
[325334829,1714741842275,-600.0,0.00025,2]
[325334830,1714741842284,-2000.0,0.00025,2]
[325334831,1714741842294,-2000.0,0.0002501,2]
[325334832,1714741842304,-2000.0,0.0002502,2]
[325334833,1714741842314,-2000.0,0.0002503,2]
[325334834,1714741842323,-2000.0,0.0002504,2]
[325334835,1714741842333,-2000.0,0.0002505,2]
[325334836,1714741842344,-2997.344069,0.0002506,2]
[325334837,1714741842353,-155.46650369,0.00025178,5]
[325334838,1714741842363,-301.29984529,0.00025178,2]
[325334839,1714741842373,-716.31163924,0.00025178,2]
[325334840,1714741842387,-155.0,0.00025178,2]
[325334841,1714741842396,-2819.94746589,0.00025189,2]
[325334842,1714741842406,-650.0,0.00026,3]
[325334843,1714741842416,-1999.82575251,0.00026577,2]
[325334844,1714741842427,-9189.71076016,0.00026577,7]
[325334845,1714741842438,-3167.18827739,0.00026577,2]
[325334846,1714741842448,-1266.72867064,0.00026577,2]
[325334847,1714741842458,-427.33703728,0.00026585,2]
[325334848,1714741842468,-555.58,0.000266,2]
[325334849,1714741842478,-2819.94746589,0.00026726,2]
[325334850,1714741842488,-563.74,0.000268,2]
[325334851,1714741842497,-800.0,0.00026877,2]
[325334852,1714741842507,-2000.0,0.00027,2]
[325334853,1714741842517,-2000.0,0.0002701,2]
[325334854,1714741842526,-400.0,0.00027014,120]
[325334855,1714741842536,-2000.0,0.0002702,2]
[325334856,1714741842545,-2000.0,0.0002703,2]
[325334857,1714741842555,-2000.0,0.0002704,2]
[325334858,1714741842564,-3501.970031,0.0002705,2]
[325334859,1714741842573,-2960.49,0.00027397,2]
[325334860,1714741842583,-150.53,0.00027397,2]
[325334861,1714741842592,-392.55,0.00027397,10]
[325334862,1714741842602,-253.78538962,0.00027416,2]
[325334863,1714741842611,-166.28,0.000275,2]
[325334864,1714741842621,-181.72407984,0.00027962,2]
[325334865,1714741842635,-485.77291207,0.00027976,2]
[325334866,1714741842644,-619.1524463,0.00027976,2]
[325334867,1714741842654,-158.45177316,0.00027976,7]
[325334868,1714741842663,-212.87980232,0.00027976,2]
[325334869,1714741842672,-286.97446244,0.00027976,2]
[325334870,1714741842681,-710.33944675,0.00027976,2]
[325334871,1714741842690,-455.09871238,0.00027976,2]
[325334872,1714741842699,-1774.10618573,0.00027976,2]
[325334873,1714741842708,-155.52429625,0.00027976,2]
[325334874,1714741842718,-1745.60243718,0.00027976,2]
[325334876,1714741842728,-156.02229976,0.00027976,2]
[325334878,1714741842738,-352.43032097,0.00027976,2]
[325334879,1714741842748,-175.69742539,0.00027976,2]
[325334881,1714741842758,-1263.46797883,0.00027976,2]
[325334883,1714741842768,-288.81241473,0.00027976,2]
[325334885,1714741842778,-214.0002672,0.00027976,2]
[325334887,1714741842789,-305.25449563,0.00027976,2]
[325334890,1714741842799,-202.77419609,0.00027976,2]
[325334892,1714741842809,-155.18648239,0.00027976,2]
[325334896,1714741842821,-264.71106287,0.00027976,2]
[325334899,1714741842832,-221.9885273,0.00027976,2]
[325334902,1714741842843,-1211.81420206,0.00027976,2]
[325334905,1714741842853,-155.80144616,0.00027976,2]
[325334908,1714741842864,-289.76780159,0.00027976,2]
[325334911,1714741842873,-194.51511767,0.00027976,2]
[325334914,1714741842887,-155.58162898,0.00027976,2]
[325334917,1714741842898,-157.68895284,0.00027976,2]
[325334922,1714741842908,-413.06779798,0.00027976,2]
[325334925,1714741842921,-155.69804417,0.00027976,2]
[325334929,1714741842930,-188.73221684,0.00027976,2]
[325334932,1714741842941,-165.20489312,0.00027976,2]
[325334935,1714741842951,-165.68744233,0.00027976,2]
[325334937,1714741842960,-155.58546375,0.00027976,2]
[325334939,1714741842969,-298.1530609,0.00027976,2]
[325334941,1714741842979,-488.38849224,0.00027976,2]
[325334943,1714741842989,-1373.19970684,0.00027976,2]
[325334945,1714741843000,-1244.22522024,0.00027976,2]
[325334948,1714741843010,-155.10093137,0.00027976,2]
[325334951,1714741843021,-414.76567386,0.00027976,2]
[325334953,1714741843030,-362.94669149,0.00027976,10]
[325334956,1714741843040,-247.82154532,0.00027976,2]
[325334959,1714741843049,-155.0,0.00027976,2]
[325334962,1714741843058,-320.02810305,0.00027976,2]
[325334964,1714741843068,-177.08401672,0.00027976,2]
[325334966,1714741843076,-364.83359893,0.00027976,2]
[325334967,1714741843087,-325.89609011,0.00027976,2]
[325334968,1714741843096,-171.48085819,0.00027976,2]
[325334969,1714741843105,-155.0,0.00027976,2]
[325334970,1714741843118,-472.76814409,0.00027976,2]
[325334973,1714741843138,-1768.6160208,0.00027976,2]
[325334976,1714741843152,-241.31138284,0.00027976,2]
[325334977,1714741843168,-214.75242742,0.00027976,2]
[325334978,1714741843183,-157.38776343,0.00027976,2]
[325334979,1714741843200,-155.0,0.00027976,2]
[325334980,1714741843215,-256.88507236,0.00027976,2]
[325334981,1714741843228,-310.60058412,0.00027976,2]
[325334982,1714741843242,-388.49778572,0.00027976,2]
[325334983,1714741843257,-155.31745909,0.00027976,2]
[325334984,1714741843274,-200.12377056,0.00027976,2]
[325334985,1714741843290,-155.11381527,0.00027976,2]
[325334986,1714741843307,-283.44852378,0.00027976,2]
[325334987,1714741843323,-346.16050584,0.00027976,3]
[325334988,1714741843337,-156.08637497,0.00027976,2]
[325334989,1714741843352,-155.85257639,0.00027976,2]
[325334990,1714741843369,-713.43468894,0.00027976,2]
[325334991,1714741843384,-236.55615877,0.00027976,2]
[325334992,1714741843396,-317.215551,0.00027976,2]
[325334993,1714741843412,-374.03915601,0.00027976,2]
[325334994,1714741843424,-156.76340974,0.00027976,2]
[325334995,1714741843435,-433.30397884,0.00027976,2]
[325334998,1714741843450,-155.75389114,0.00027976,2]
[325335000,1714741843462,-862.83994575,0.00027976,3]
[325335002,1714741843474,-205.8661744,0.00027976,2]
[325335005,1714741843486,-156.20847685,0.00027976,2]
[325335007,1714741843499,-1224.55602433,0.00027976,2]
[325335010,1714741843512,-786.99155585,0.00027976,2]
[325335012,1714741843533,-155.21849789,0.00027976,2]
[325335015,1714741843545,-202.23422368,0.00027976,2]
[325335017,1714741843558,-155.85308628,0.00027976,2]
[325335020,1714741843571,-968.2028248,0.00027976,2]
[325335022,1714741843583,-156.49490382,0.00027976,2]